[Event "EU-ch 12th"]
[Site "Aix les Bains"]
[Date "2011.03.22"]
[Round "1"]
[White "Maevsky, Nikolay"]
[Black "Gharamian, Tigran"]
[Result "0-1"]
[ECO "E12"]
[WhiteElo "2342"]
[BlackElo "2650"]
[Annotator "Marchand,A/Primel,D"]
[PlyCount "62"]
[EventDate "2011.03.22"]
[EventType "swiss"]
[EventRounds "11"]
[EventCountry "FRA"]
[SourceTitle "CBM 142 Extra"]
[Source "ChessBase"]
[SourceDate "2011.06.27"]
[SourceVersion "1"]
[SourceVersionDate "2011.06.27"]
[SourceQuality "1"]
[TimeControl "40/5400+30:1800+30"]

1. c4 e6 2. Nc3 (2. Nf3 Nf6 3. d4 b6 4. a3 Ba6 5. Qc2 {[%cal Ge2e4]} Bb7 6. Nc3
c5 7. e4 cxd4 8. Nxd4 d6 9. Be2 {[%csl Gc2] Dans cette ligne de
l'Ouest-Indienne qui est proche de la Kan, les Blancs ont un tempo de plus par
rapport а la partie car ils ont économisé l'échec Qa4 qui n'est pas trés utile.
}) 2... c5 3. Nf3 b6 4. d4 cxd4 5. Nxd4 a6 (5... Nf6) (5... Bb7) 6. e4 Bb7 7.
Be3 d6 8. Be2 Nf6 9. f3 Be7 (9... Qc7 10. O-O Nbd7 11. Qd2 Rc8 12. Rfc1 $5 {
Dans une partie récente face а un adversaire agressif qui ne voulait pas
roquer, j'ai joué ce plan peu connu laissant la Ra1 en soutien de la poussée
a4a5} Be7 13. a4 $1 {Le plan habituel des Blancs est plutôt Rfd1 et Rac1 mais
а part un avantage d'espace, les Blancs n'obtiennent pas grand chose} h6 $6
$146 {[%cal Gg7g5,Gg5g4] Un plan douteux mais intéressant où les Noirs
essayent d'améliorer le plan de Fischer d'attaque а l'aile-roi par g7g5 et Rg8
en ayant économisé le roque et le K Noir est mieux placé au centre qu'en "h8"}
(13... O-O 14. a5 $36 {Kacheishvili,G (2606)-Kritz,L (2589) USA tt ICC INT
rapid 2009 (6) 1-0}) 14. a5 bxa5 15. Nb3 g5 {[%cal Gg5g4,Gg4f3,Gh8g8]} 16. Nxa5
Ba8 17. h3 Nh5 $6 {[%cal Gh5f4,Gh5g3]} (17... Rg8) 18. Nd5 $1 $44 {[%cal Gc1c7]
;Primel,D-Gautier,M Angers 2012 1-0}) 10. Qa4+ {Intéressant mais probablement
trop lent} (10. O-O $142 {Aurait transposé dans une sicilienne Kan}) 10... Nfd7
{73} (10... Qd7) (10... Nbd7 $5 {Le plan des Blancs est trés lent et c'est
peut-être la meilleure option surtout d'un point de vue psychologique lorsque
les Blancs vont s'apercevoir qu'ils n'ont rien obtenu de l'ouverture.} 11. Nc6
{[%cal Gc6e7,Gc6d8] L'idée de l'échec intermédaire Qa4 mais même après le gain
de la paire de B, les Blancs n'ont pas grand-chose} Bxc6 12. Qxc6 O-O $32 13.
O-O (13. Qa4 b5 $1 {[%csl Re1]} (13... d5 $1 {Dans la "bible" sur la structure
hérissson "the complete hedgehog" le GMI SHIPOV donne cette forte variante
pour les Noirs} 14. exd5 exd5 15. cxd5 b5 16. Qb3 Re8 $40 {[%csl Re1,Re2,Re3,
Rf3][%cal Ge8e1]}) 14. cxb5 axb5 15. Qxb5 Rb8 $36 {[%cal Gb8b2]}) 13... Nc5 $1
{[%csl Ga4,Rc6][%cal Ga8c8] La menace de gain de la Q force les Noirs а rendre
la paire de B et les Noirs ont au minimum l'égalité.}) 11. O-O O-O 12. Rfd1 Qc7
13. Qc2 (13. Rac1 Nf6 {Fishbein,A (2465)-Kudrin,S (2510) New York op 1991 (3)
1/2}) 13... Nf6 14. Rac1 (14. a4 $5 {[%cal Ga4a5]} Nbd7 15. a5 $14 {Adamski,J 
(2400)-Cvitan,O (2500) Berliner Sommer 06th 1988 (6) 1/2}) 14... Nbd7 15. Bf1 (
15. Qd2 {Transpose dans les grandes lignes}) 15... Rac8 16. Qf2 {[%csl Rb6]
[%cal Ge3b6]} (16. b4 Rfe8 17. a3 Qb8 18. Qd2 (18. Qf2)) 16... Qb8 17. b4 {
[%cal Gc4c5,Gd4b3]} (17. a3 Bd8 {[%cal Gd8c7,Gc7h2,Gf8e8];Svetushkin,D (2546)
-Jenni,F (2517) WUCC op 8th Istanbul 2004 (9) 0-1}) 17... Rfe8 {[%cal Ge7d8,
Ge8e3]} 18. a3 {Anticipe la poussée d5 en protégeant le P "b4" mais c'est au
détriment de l'affaiblissement "c4"} (18. Nb3 d5 $1 {[%cal Ge7b4]}) 18... Bd8 {
[%cal Gd8c7,Gc7h2,Gd6d5,Ge8e3] La manoeuvre classique dans cette structure
pour réactiver le B} 19. Kh1 (19. Nb3 {[%cal Ge3b6] Peut-être un peu meilleur
pour empêcher les Noirs de jouer Ne5 en faisant pression sur la faiblesse "b6}
Bc7 {[%cal Gd6d5]} 20. g3 (20. Kh1 d5 $1)) 19... Ne5 $5 $146 {[%csl Rc4]} (
19... Bc7 {Bucher,M (2244)-Jenni,F (2505) SUI-ch int Saas Almagell 2005 (8) 0-1
}) 20. Na4 {[%csl Rb6]} (20. Qa2 {[%cal Ga2c4]} Qc7 21. Na4 {[%csl Rb6][%cal
Ga4b6,Ge3b6]}) (20. Nb3 Nxc4 21. Bxc4 Rxc4 22. Bxb6 d5 $1 $36) 20... d5 $1 {
Le ressort se détend et les Noirs prennent l'initiative} 21. exd5 exd5 22. Nf5
Neg4 $1 23. fxg4 Nxg4 24. Qg1 Qe5 $40 {[%cal Ge5f5,Ge5e3,Gg4e3]} 25. Bd4 (25.
Nh6+ gxh6 26. Bd4 {[%csl Gd4]}) 25... Qxf5 26. Bd3 Qh5 {[%csl Rh2]} 27. c5 b5
28. Nc3 Bg5 $1 29. Ra1 $2 (29. Bf5 Bxc1 30. Bxc8) 29... Be3 30. Bxe3 Rxe3 31.
Ne2 Rh3 0-1

[Event "FRA-chT Top 12"]
[Site "Drancy"]
[Date "2016.05.30"]
[Round "3.3"]
[White "Velten, Paul"]
[Black "Heimann, Andreas"]
[Result "1-0"]
[ECO "E12"]
[WhiteElo "2469"]
[BlackElo "2578"]
[Annotator "RR"]
[PlyCount "123"]
[EventDate "2016.05.28"]
[EventType "team-tourn"]
[EventRounds "11"]
[EventCountry "FRA"]
[SourceTitle "CBM 172 Extra"]
[Source "ChessBase"]
[SourceDate "2016.06.21"]
[SourceVersion "1"]
[SourceVersionDate "2016.06.21"]
[SourceQuality "1"]
[WhiteTeam "Chalons-en-Champagne"]
[BlackTeam "Mulhouse Philidor"]
[WhiteTeamCountry "FRA"]
[BlackTeamCountry "FRA"]
[TimeControl "40/5400+30:1800+30"]

1. d4 {[%emt 0:00:30][%mdl 512] Prix de beauté de la 03ème ronde} Nf6 {
[%emt 0:00:30]} 2. c4 {[%emt 0:00:30]} e6 {[%emt 0:00:00]} 3. Nf3 {[%emt 0:00:
30]} b6 {[%emt 0:00:00]} 4. a3 {[%emt 0:00:30]} Ba6 {[%emt 0:02:30]} 5. Qc2 {
[%emt 0:01:30]} Bb7 {[%emt 0:01:30]} 6. Nc3 {[%emt 0:06:30]} c5 {[%emt 0:00:00]
} 7. e4 {[%emt 0:08:30]} cxd4 {[%emt 0:03:00]} 8. Nxd4 {[%emt 0:00:30]} Bc5 {
[%emt 0:01:30]} (8... d6 {Transpose dans des positions hérisson proches de la
sicilienne Kan avec une Qc2 au lieu de Qd2}) (8... Nc6) 9. Nb3 {[%emt 0:01:30]}
Nc6 {[%emt 0:00:30]} 10. Bd3 {[%emt 0:00:30]} Be7 {[%emt 0:28:30]} (10... O-O
11. O-O Be7 12. Bf4 d6 13. Be2 Qc8 14. Rac1 Ne5 15. Nd2 Rd8 16. Rfd1 Qc7 17.
Nb5 Qc6 18. b4 a6 19. Nc3 Rac8 20. Qb1 Ba8 21. h3 Nfd7 22. Be3 Bf6 23. Bf1 Qb7
24. Qb3 Qb8 25. Rb1 b5 26. Rbc1 bxc4 27. Nxc4 Nxc4 28. Bxc4 Bb7 29. Be2 h6 30.
Na4 Bxe4 31. Bxa6 Rxc1 32. Rxc1 Bxg2 33. Kxg2 Qa8+ 34. Kg1 Qxa6 35. b5 Qb7 36.
b6 Ne5 37. Rc7 Qf3 38. Kf1 d5 39. Nc5 Qxh3+ 40. Ke1 {Cvitan,O (2538)-Georgiev,
K (2665) Sibenik 2008 0-1}) 11. Bf4 $146 {[%emt 0:04:30]} (11. f4 d6 12. O-O
Nd7 13. Be3 Nc5 14. Be2 O-O 15. Rad1 Qc7 16. Nd2 Rac8 17. b4 Nd7 18. Nb3 a6 19.
Rc1 Qb8 20. Bd3 g6 21. Qf2 Ba8 22. Na4 Bd8 23. Be2 Ne7 24. Nc3 Bb7 25. Nd4 Nf6
26. f5 Nxe4 27. Nxe4 Bxe4 28. fxe6 f5 29. Bh6 Re8 30. Bf3 d5 31. cxd5 Rxc1 32.
Rxc1 Bxd5 33. Nc6 {1-0 (33) Khalifman,A (2500)-Tukmakov,V (2575) Kuibyshev 1986
}) 11... d6 {[%emt 0:00:30]} 12. Rd1 {[%emt 0:02:30]} Qb8 {[%emt 0:05:30]} 13.
O-O {[%emt 0:02:30]} O-O {[%emt 0:00:30]} 14. Be2 {[%emt 0:08:30]} Ne5 {
[%emt 0:04:30]} 15. Bg3 {[%emt 0:07:30]} Rc8 $5 {[%emt 0:00:30] Attaquant la
seule faiblesse Blanche} 16. Nd2 {[%emt 0:00:30]} a6 {[%emt 0:09:30] Il est
difficile pour les Noirs de terminer le développement sans jouer ce coup
thématique} 17. f4 {[%emt 0:08:30]} (17. f3 {L'alternative plus solide mais
aussi moins ambitieuse}) 17... Ned7 {[%emt 0:00:00]} 18. Kh1 {[%emt 0:01:30]}
Bc6 {[%emt 0:09:00]} 19. Nb3 {[%emt 0:09:30]} Qb7 {[%emt 0:02:30]} 20. Bf3 {
[%emt 0:03:30]} Nc5 {[%emt 0:04:30]} (20... b5 21. Na5 $1 $18 {[%cal Ga5c6,
Ga5b7,Ge4e5,Gf3c6]} (21. e5 Bxf3 (21... dxe5 $6 22. fxe5 Nxe5 $5 23. Bxe5 Bxf3
24. Rxf3 bxc4) 22. Rxf3 dxe5 23. fxe5 Nh5 {[%cal Gh5g3,Gc8c4]})) (20... Qc7
$142 {Malgré la perte de temps, le coup thématique Qc7 parait plus sain} 21.
Qe2 (21. e5) (21. Nd4 Bb7 22. Qe2) 21... Bb7 22. Nd2 $11 {[%cal Gd2c4]}) 21.
Nxc5 {[%emt 0:00:30]} dxc5 {[%emt 0:00:30]} 22. e5 {[%emt 0:04:30]} Bxf3 {
[%emt 0:01:30]} 23. Rxf3 {[%emt 0:00:30]} Nh5 {[%emt 0:01:30]} 24. f5 {[%emt 0:
03:30]} Rd8 {[%emt 0:04:55]} 25. Rdf1 $36 {[%emt 0:00:30]} Rd4 {[%emt 0:00:33]}
(25... Nxg3+ 26. Rxg3 Bf8 27. Ne4 {[%cal Ge4f6,Ge4d6,Gg3h3,Gc2h7]}) 26. f6 {
[%emt 0:02:30]} Bf8 {[%emt 0:00:59]} 27. fxg7 {[%emt 0:02:47]} Bxg7 {[%emt 0:
00:31]} 28. Rxf7 {[%emt 0:00:33]} Qxf7 {[%emt 0:01:32]} 29. Rxf7 {[%emt 0:00:
04]} Nxg3+ {[%emt 0:00:00]} 30. hxg3 {[%emt 0:00:07]} Kxf7 {[%emt 0:00:02]} 31.
Qe2 {[%emt 0:00:52]} Ke7 {[%emt 0:09:40]} 32. Ne4 {[%emt 0:04:16]} Rf8 {
[%emt 0:03:27]} 33. Ng5 {[%emt 0:01:26]} Rf5 {[%emt 0:00:06]} 34. Nf3 {[%emt 0:
00:14]} Rd7 {[%emt 0:00:09]} 35. b4 {[%emt 0:00:44]} Ke8 {[%emt 0:03:55]} 36.
Kh2 {[%emt 0:01:51]} cxb4 $6 {[%emt 0:00:53]} (36... Rh5+ 37. Kg1 $13) 37. axb4
{[%emt 0:00:11]} a5 {[%emt 0:00:02]} 38. c5 {[%emt 0:00:20]} bxc5 {[%emt 0:02:
20]} 39. bxa5 {[%emt 0:01:56]} Ke7 {[%emt 0:01:10]} 40. g4 {[%emt 0:00:33]} Rf4
{[%emt 0:00:35]} 41. Kg3 {[%emt 0:00:36]} Rb4 {[%emt 0:02:11]} 42. Qc2 {
[%emt 0:06:30]} c4 {[%emt 0:01:30]} 43. Qxh7 {[%emt 0:00:30]} Kf8 {[%emt 0:00:
30]} 44. Qg6 {[%emt 0:00:30]} c3 {[%emt 0:09:20]} 45. Qxe6 {[%emt 0:00:30]}
Rbb7 {[%emt 0:00:02]} 46. Ng5 {[%emt 0:04:30]} Bh8 {[%emt 0:00:58]} 47. Qf5+ {
[%emt 0:00:30]} Kg8 {[%emt 0:05:26]} 48. Ne6 {[%emt 0:04:30]} Rf7 {[%emt 0:04:
09]} 49. Qg6+ {[%emt 0:02:30]} Bg7 {[%emt 0:00:07]} 50. a6 {[%emt 0:03:30]} Ra7
{[%emt 0:00:09]} 51. Nd4 {[%emt 0:04:04]} Rfe7 {[%emt 0:05:54]} 52. Nf5 {
[%emt 0:06:01]} Rxe5 {[%emt 0:00:25]} 53. Nh6+ {[%emt 0:00:16]} Kh8 {[%emt 0:
04:19]} 54. Nf7+ {[%emt 0:01:34]} Rxf7 {[%emt 0:00:05]} 55. Qxf7 {[%emt 0:00:
03]} c2 {[%emt 0:00:03]} 56. a7 {[%emt 0:00:29]} Ra5 {[%emt 0:00:06]} 57. Qe8+
{[%emt 0:00:46]} Kh7 {[%emt 0:00:05]} 58. Qe4+ {[%emt 0:00:16]} Kh6 {[%emt 0:
00:30]} 59. Qe3+ {[%emt 0:00:20]} Kh7 {[%emt 0:03:02]} 60. Qd3+ {[%emt 0:00:04]
} Kh6 {[%emt 0:00:04]} 61. Qd2+ {[%emt 0:00:12]} Kh7 {[%emt 0:00:09]} 62. Qxc2+
{[%emt 0:00:14]} 1-0

[Event "Match/Team URS-World 20,5-19,5"]
[Site "Belgrade"]
[Date "1970.04.02"]
[Round "3.1"]
[White "Spassky, Boris Vasilievich"]
[Black "Larsen, Bent"]
[Result "0-1"]
[ECO "E12"]
[WhiteElo "2670"]
[BlackElo "2650"]
[Annotator "Spassky/Larsen"]
[PlyCount "76"]
[EventDate "1970.03.29"]
[EventType "team"]
[EventRounds "4"]
[EventCountry "YUG"]
[SourceTitle "MCL"]
[Source "ChessBase"]
[SourceDate "1999.07.01"]
[SourceVersion "1"]
[SourceVersionDate "1999.07.01"]
[SourceQuality "1"]
[WhiteTeam "Soviet Union"]
[BlackTeam "World"]
[WhiteTeamCountry "URS"]
[TimeControl "40/9000:16/5400:0"]

1. d4 Nf6 2. c4 e6 3. Nf3 b6 4. Nc3 Bb7 5. Bg5 Be7 6. e3 O-O (6... Ne4 {
Spassky=:S}) 7. Bd3 c5 8. O-O Nc6 $2 {S/ ?! Larsen=:L} (8... cxd4 9. exd4 d5 {S
}) (8... h6 9. Bh4 Nc6 {L}) (8... d5 9. Qe2 Nc6 10. Rad1 cxd4 11. exd4 Nb4 12.
Bb1 dxc4 13. Ne5 Nbd5 14. Rfe1 Rc8 15. Qf3 Nxc3 16. Qxc3 Nd5 17. Qh3 f5 18. Bc1
Bg5 19. Qg3 Bxc1 20. Rxc1 Rf6 21. Qh4 b5 22. a4 a6 23. axb5 axb5 24. Bc2 Nb4
25. Re3 Nxc2 26. Rxc2 Rh6 27. Qxd8+ Rxd8 28. Rd2 Rh4 29. g4 fxg4 30. Ra3 Rh5
31. Re3 Rf5 32. Nxg4 Ra8 33. Kf1 Rf4 34. h3 Ra1+ 35. Ke2 h5 36. Ne5 Bg2 37. f3
Bxh3 38. Rc3 {Janowski,D-Yates,F Semmering 1926 1/2-1/2 (72)}) 9. d5 Nb4 (9...
exd5 10. cxd5 Nxd5 11. Bxh7+ $16 {L}) 10. d6 Bxd6 11. Bxh7+ (11. Bxf6 gxf6 (
11... Qxf6 $4 12. Be4 $18) 12. Bxh7+ Kxh7 13. Qxd6 $142 $16 {L}) 11... Kxh7 12.
Qxd6 Bxf3 13. gxf3 Ne8 $1 {S} 14. Qe7 $1 {S/L} (14. Qg3 f6 $13) (14. Qxf8 Qxg5+
15. Kh1 Qh5 16. Rg1 Qxf3+ 17. Rg2 g6 $13 {L}) (14. Bxd8 Nxd6 15. Be7 Nxc4 16.
Bxf8 Rxf8 $44 {S}) 14... Qxe7 15. Bxe7 Rg8 (15... Rh8 {P g8 S}) 16. Rfd1 Nc6
17. Rxd7 Ne5 18. Rb7 Nxc4 19. Ne4 $1 {S/L} Na5 (19... Nxb2 20. Bxc5 {S} (20.
Ng5+ Kg6 21. Kh1 $40 {L})) 20. Rd7 Nc6 21. f4 Rc8 22. Rc1 (22. Rad1 Rc7 23. Bh4
{S}) 22... a5 (22... Rc7 23. Rxc7 Nxc7 24. Bxc5 {S/L}) (22... Nxe7 23. Rxe7 Rc7
24. Rxc7 Nxc7 25. b4 {S/L}) 23. a3 Kg6 $6 {L} (23... Nxe7 24. Rxe7 Rc7 {L}) 24.
Kg2 Rh8 (24... Nxe7 $142 {L}) 25. Kf3 (25. Rg1 Nxe7 26. Kf3+ Kh6 27. Rxe7 Rc7
28. Rxc7 Nxc7 29. Nd6 Rf8 30. Nc4 Rb8 31. Rd1 {S}) 25... Rxh2 26. Ng5 (26. Bf8
Kh7 27. Rxf7 Kg8 28. Ng5 Nd8 $1 {S}) 26... e5 $1 {S} 27. Rg1 exf4 28. Bd6 $1 {S
} Nxd6 29. Rxd6+ f6 30. Ne6+ Kf5 (30... Kh7 {S}) 31. Nxf4 {P 32.e4 e5 33. d5# S
} (31. Nxg7+ Ke5 32. Re6+ (32. Rgd1 $2 Nd4+ $1) 32... Kd5 $15 {L} 33. Rd1+ Kc4
34. Nf5 Kb3 {S}) 31... Ne5+ 32. Ke2 Re8 $1 {S ? L} (32... g5 $4 33. Nd5 $16 {
S/L}) (32... Nc4 $1 $10 33. Rd5+ Ke4 34. Rxg7 Nxe3 (34... Re8) 35. Re7+ {L})
33. Rxb6 (33. Ne6 $1 {L} Rxe6 (33... Nc4 34. Nxg7+ Ke5 35. Nxe8 Nxd6 $14 {L})
34. e4+ Kxe4 35. Rxe6 {S}) 33... Nc4 {P e3 S} 34. Rb3 g5 35. Nd5 Re5 36. Rd1 (
36. Rc1 Nd6 {L}) 36... g4 37. Kf1 $4 {S/L} (37. Nb6 Nxb6 $10 (37... a4 $1 38.
Nxc4 (38. Nxa4 g3 39. Kf3 (39. Rf1 Nd6 40. Nc3 Kg4) 39... g2 40. Rbd3 Re4)
38... axb3 39. Nxe5 fxe5 $19 {P g3, c3 L})) 37... Rh1+ 38. Ke2 Rxd1 0-1

[Event "EU-chT (Men) 21st"]
[Site "Heraklion"]
[Date "2017.11.06"]
[Round "9.2"]
[White "Parligras, Mircea Emilian"]
[Black "Salgado Lopez, Ivan"]
[Result "1-0"]
[ECO "E12"]
[WhiteElo "2616"]
[BlackElo "2629"]
[Annotator "Sukandar,I"]
[PlyCount "75"]
[EventDate "2017.10.28"]
[EventType "team-swiss"]
[EventRounds "9"]
[EventCountry "GRE"]
[SourceTitle "CBM 182"]
[Source "ChessBase"]
[SourceDate "2018.01.17"]
[SourceVersion "1"]
[SourceVersionDate "2018.01.17"]
[SourceQuality "1"]
[WhiteTeam "Romania"]
[BlackTeam "Spain"]
[WhiteTeamCountry "ROU"]
[BlackTeamCountry "ESP"]
[TimeControl "40/5400+30:1800+30"]

{In this game, I will not comment much about the openings, but here I just
wanted to show you how White smoothly carried out his attacking plan while
being attacked himself. An example of the importance of calculation!} 1. d4 {
[%emt 0:00:00]} Nf6 {[%emt 0:00:43]} 2. c4 {[%emt 0:00:00]} e6 {[%emt 0:00:11]}
3. Nf3 {[%emt 0:00:00]} b6 {[%emt 0:01:44]} 4. Bf4 {[%emt 0:01:51]} Bb4+ {
[%emt 0:02:25]} 5. Nfd2 {[%emt 0:00:06]} Nh5 {[%emt 0:00:02]} 6. Bg3 {[%emt 0:
00:24]} Nxg3 {[%emt 0:03:16]} 7. hxg3 {[%emt 0:00:05]} Bb7 {[%emt 0:00:08]} 8.
e3 {[%emt 0:01:49]} Bf8 {[%emt 0:01:17]} 9. Nc3 {[%emt 0:00:44]} g6 {[%emt 0:
00:26]} 10. Qc2 {[%emt 0:05:49]} Bg7 {[%emt 0:01:06]} 11. O-O-O {[%emt 0:00:49]
} Qe7 {[%emt 0:04:51]} 12. Kb1 {[%emt 0:02:06]} d6 {[%emt 0:07:30]} 13. Rh2 {
[%emt 0:03:22]} Nd7 {[%emt 0:03:29]} 14. Be2 {[%emt 0:00:17]} a6 {[%emt 0:02:
42]} 15. Bf3 {[%emt 0:03:07]} c6 {[%emt 0:01:16]} 16. g4 {[%emt 0:06:37]} Rb8 {
[%emt 0:08:32]} 17. Be2 {[%emt 0:10:07]} Rc8 {[%emt 0:08:18]} 18. f4 {[%emt 0:
01:27]} c5 {[%emt 0:01:29]} 19. dxc5 $6 {[%emt 0:01:00]} (19. d5 $1 exd5 (19...
O-O 20. dxe6 fxe6 21. Nde4) 20. Bf3 O-O (20... Qxe3 $2 21. g3 {[%cal Rh2e2]})
21. g5 Qxe3 22. Bxd5 Bxc3 23. Bxb7 Rc7 24. Rh3 Qe7 25. Qxc3 Rxb7 26. Rxh7 $18)
19... Nxc5 {[%emt 0:01:19]} 20. Bf3 {[%emt 0:21:17]} Bxf3 {[%emt 0:02:38]} (
20... b5 21. Bxb7 Nxb7 22. Rdh1 Kf8) 21. gxf3 {[%emt 0:02:02]} b5 {[%emt 0:02:
37]} 22. cxb5 {[%emt 0:03:34]} axb5 {[%emt 0:04:14]} 23. Nxb5 {[%emt 0:10:47]}
O-O {[%emt 0:01:49]} 24. Nc4 {[%emt 0:01:10]} Rb8 {[%emt 0:05:11]} 25. Nbxd6
$16 {[%emt 0:01:32] Besides being two pawns up, White also has an initiative
directed against Black's king on the h-file. However, Black has also tried to
create counterplay on the opposite side of the board, therefore White still
had to be careful.} Qa7 {[%emt 0:05:08]} 26. Rdh1 {[%emt 0:03:51]} Na4 {
[%emt 0:02:56]} 27. Rxh7 {[%emt 0:01:09]} Rfd8 {[%emt 0:11:14]} (27... Rxb2+ $2
{would not work because of} 28. Nxb2 Nc3+ 29. Kc1 Qxe3+ 30. Qd2 Nxa2+ 31. Kc2
Qxd2+ 32. Kxd2 Bxb2 33. g5 $16) 28. Qh2 {[%emt 0:05:49]} Nc3+ {[%emt 0:00:22]}
29. Kc1 {[%emt 0:02:42]} (29. Ka1 $4 {would be a rookie mistake.} Qxa2#) 29...
Nxa2+ {[%emt 0:00:21]} 30. Kd1 {[%emt 0:00:04]} ({Always avoid the king being
checked. Do not play} 30. Kd2 $2 {because} Rxb2+ 31. Nxb2 Rxd6+ 32. Nd3 Rxd3+
33. Kxd3 Qa6+ 34. Kd2 Bc3+ 35. Kc2 Qa4+ 36. Kd3 Qb5+ 37. Kc2 Qa4+ $11 {Forced
draw.}) 30... Nc3+ {[%emt 0:01:04] Desperate check.} 31. Kc2 {[%emt 0:08:09]
Oddly enough, the king is safe in the centre.} Qa4+ {[%emt 0:03:29]} 32. Kd3 {
[%emt 0:00:04]} Rxd6+ {[%emt 0:07:26]} 33. Nxd6 {[%emt 0:00:06]} Qa6+ {[%emt 0:
01:00]} 34. Nc4 {[%emt 0:00:04]} Rd8+ {[%emt 0:00:43]} 35. Kc2 {[%emt 0:00:05]
The king always had a precise escaping square for every check.} Kf8 {[%emt 0:
05:25]} (35... Qa4+ 36. b3 Qa2+ 37. Nb2 {and it's over.}) 36. Rxg7 {[%emt 0:00:
20]} Qxc4 {[%emt 0:00:05]} (36... Qa4+ 37. Kxc3) 37. Qh8+ {[%emt 0:00:22]} Ke7
{[%emt 0:00:01]} 38. Rxf7+ {[%emt 0:00:06]} 1-0